Cogmind - Beta 9.6 @@@ ROGUE MODE // 2020.08.22 @ 19:36:50 Player: LumberViking Result: Destroyed by S-27 Virus with Autogun Performance ------------- Evolutions (1) 500 Regions Visited (5) 1000 Robots Destroyed (23) 115 Value Destroyed (602) 602 Prototype IDs (0) 0 Alien Tech Used (0) 0 Bonus (600) 600 TOTAL SCORE: 2817 Bonus ------- Met Imprinter 300 Was Imprinted 300 Cogmind --------- Core Integrity 0/400 Matter 280/300 Energy 100/100 System Corruption 0% Temperature Cool (9) Movement Core (300) Ox5 Location -6/Proximity Caves Parts ------- > --- POWER (1) -------- (None) > --- PROPULSION (4) --- (None) > --- UTILITY (2) ------ Large Storage Unit Signal Interpreter > --- WEAPON (2) ------- (None) > --- INVENTORY (10) --- Ion Engine Light Ion Engine Improved Hover Unit Improved Hover Unit Sensor Array Sensor Array Storm Laser Peak State ------------ > --- POWER ------------ Ion Engine > --- PROPULSION ------- Improved Hover Unit Improved Hover Unit Improved Hover Unit Improved Hover Unit > --- UTILITY ---------- Large Storage Unit Signal Interpreter > --- WEAPON ----------- Light Assault Rifle Heavy Assault Rifle > --- INVENTORY -------- Ion Engine Light Ion Engine Improved Hover Unit Improved Hover Unit Sensor Array Sensor Array Storm Laser [Rating: 17] Favorites ----------- Power Ion Engine Engine Ion Engine Propulsion Improved Hover Unit Leg Aluminum Leg Hover Unit Improved Hover Unit Utility Large Storage Unit Device Terrain Scanner Storage Large Storage Unit Processor Signal Interpreter Weapon Heavy Assault Rifle Energy Gun Medium Laser Ballistic Gun Heavy Assault Rifle Ballistic Cannon Light Cannon Build | -11 -10 -9 -9 -7 -6 ------- Run | Scr Mat Mat Min Zio Pro Slots Evolved 2 | . . 2 . . . Power . | . . . . . . Propulsion 2 | . . 2 . . . Utility . | . . . . . . Weapon . | . . . . . . Parts Attached 31 | 6 7 17 . 1 . Power 3 | 1 1 1 . . . Engine 3 | 1 1 1 . . . Core . | . . . . . . Reactor . | . . . . . . Propulsion 11 | 2 . 9 . . . Treads . | . . . . . . Leg 7 | 2 . 5 . . . Wheel . | . . . . . . Hover 4 | . . 4 . . . Flight . | . . . . . . Utility 6 | 1 3 1 . 1 . Device 1 | . 1 . . . . Storage 4 | 1 2 . . 1 . Processor 1 | . . 1 . . . Hackware . | . . . . . . Protection . | . . . . . . Artifact . | . . . . . . Weapon 11 | 2 3 6 . . . Energy Gun 8 | 2 3 3 . . . Energy Cannon . | . . . . . . Ballistic Gun 2 | . . 2 . . . Ballistic Cannon 1 | . . 1 . . . Launcher . | . . . . . . Special Weapon . | . . . . . . Impact Weapon . | . . . . . . Slashing Weapon . | . . . . . . Piercing Weapon . | . . . . . . Special Melee Weapon . | . . . . . . Unidentified Prototypes . | . . . . . . Parts Lost 14 | . . 7 . . 7 Power 2 | . . 1 . . 1 Propulsion 7 | . . 3 . . 4 Utility 1 | . . 1 . . . Weapon 4 | . . 2 . . 2 Highest Loss Streak 7 | . . 6 . . 7 Average Slot Usage (%) 93 | . 99 79 100 100 85 Engine 11 | . 14 9 11 11 9 Leg 14 | . 28 25 . . . Hover 21 | . . 4 44 44 36 Device 4 | . 11 5 . . . Storage 12 | . 15 11 11 11 11 Processor 5 | . . 2 11 11 11 Energy Gun 10 | . 28 12 . . . Ballistic Gun 10 | . . 3 22 22 16 Ballistic Cannon 1 | . . 4 . . . Naked Turns . | . . . . . . Heaviest Build 30 | 10 30 27 25 25 25 Greatest Support 40 | 20 20 40 32 32 32 Greatest Overweight (x) 6 | . 1 1 . . 6 Average Overweight (x) . | . . . . . . Largest Inventory Capacity 14 | 6 14 10 10 10 10 Average Capacity 9 | 4 9 10 10 10 10 Most Carried 10 | 3 6 10 10 10 10 Average Carried 7 | 1 3 5 10 9 10 Final Capacity 10 | 6 10 10 10 10 10 Final Carried 10 | 1 6 10 10 10 10 Class Distribution -------------------- 57% | Mutant 34% | Messiah-Mutant 8% | Scavenger-Mutant Dominant Class ---------------- Mutant | -10/Materials Mutant | -9/Materials Mutant | -9/Mines Messiah-Mutant | -7/Zion Messiah-Mutant | -6/Proximity Caves Resources | -11 -10 -9 -9 -7 -6 ----------- Run | Scr Mat Mat Min Zio Pro Matter Collected 621 | 195 124 269 . 33 . Remotely . | . . . . . . Salvage Created 713 | . 154 559 . . . Parts 46 | . 14 32 . . . Haulers Intercepted . | . . . . . . Recyclers Shooed . | . . . . . . Parts Field Recycled . | . . . . . . Retrieved Matter . | . . . . . . Parts Self-Destructed 3 | . . . . . 3 Prevented . | . . . . . . Kills | -11 -10 -9 -9 -7 -6 ------- Run | Scr Mat Mat Min Zio Pro Combat Hostiles Destroyed 21 | . 6 15 . . . Guns 18 | . 6 12 . . . Cannons 3 | . . 3 . . . Classes Destroyed 6 | . 3 3 . . . Watcher 2 | . 1 1 . . . Swarmer 8 | . 5 3 . . . Grunt 8 | . 1 7 . . . Brawler 1 | . . 1 . . . Duelist 1 | . . 1 . . . Sentry 3 | . . 3 . . . Best Kill Streak 5 | . 4 5 . . . Combat Bots Only 5 | . 3 5 . . . Max Kills in Single Turn 1 | . 1 1 . . . Gunslinging . | . . . . . . Exploded . | . . . . . . Melee . | . . . . . . Uniques/NPCs Destroyed . | . . . . . . Combat | -11 -10 -9 -9 -7 -6 -------- Run | Scr Mat Mat Min Zio Pro Damage Taken 1925 | . 185 801 . . 939 Core 433 | . 27 98 . . 308 Absorbed by Shields . | . . . . . . Core Remaining (%) 94 | 100 89 . . . . Volleys Fired 88 | . 16 61 . . 11 Largest 2 | . 2 2 . . 2 Hottest 121 | . 90 121 . . 43 Shots Fired 161 | . 32 110 . . 19 Gun 134 | . 32 83 . . 19 Cannon 27 | . . 27 . . . Launcher . | . . . . . . Special . | . . . . . . Kinetic 54 | . . 35 . . 19 Thermal 68 | . 16 52 . . . Explosive . | . . . . . . Electromagnetic 39 | . 16 23 . . . Robot Hit Streak 11 | . 6 11 . . 1 Robot Miss Streak 12 | . 4 7 . . 12 Penetration Max . | . . . . . . Secondary Targets . | . . . . . . Shots Hit Robots 79 | . 14 62 . . 3 Core Hits 44 | . 9 32 . . 3 Critical Hits 1 | . . 1 . . . Critical Kills 1 | . . 1 . . . Critical Parts Destroyed . | . . . . . . Melee Attacks . | . . . . . . Impact . | . . . . . . Slashing . | . . . . . . Piercing . | . . . . . . Sneak Attacks . | . . . . . . Combat Hostiles . | . . . . . . Follow-up Attacks . | . . . . . . Damage Inflicted 1151 | . 228 854 . . 69 Guns 954 | . 193 692 . . 69 Cannons 162 | . . 162 . . . Explosions 35 | . 35 . . . . Melee . | . . . . . . Ramming . | . . . . . . Kinetic 329 | . . 260 . . 69 Thermal 490 | . 98 392 . . . Explosive . | . . . . . . Electromagnetic 332 | . 130 202 . . . Impact . | . . . . . . Slashing . | . . . . . . Piercing . | . . . . . . Highest Corruption . | . . . . . . Average Corruption . | . . . . . . Corruption Purged . | . . . . . . Overload Shots . | . . . . . . Overflow Damage . | . . . . . . Projectiles . | . . . . . . Explosions . | . . . . . . Melee . | . . . . . . Knockbacks . | . . . . . . Impact . | . . . . . . Kinetic . | . . . . . . Secondary . | . . . . . . Self-Inflicted Damage . | . . . . . . Shots . | . . . . . . Rammed . | . . . . . . Targets Rammed . | . . . . . . Kicked . | . . . . . . Crushed . | . . . . . . Highest Temperature 370 | . 210 370 . . 8 Average Temperature 104 | . 79 122 . . 4 Received Heat Transfer 402 | . 12 318 . . 72 Effects 1 | . . 1 . . . Interference 1 | . . 1 . . . Siege Activations . | . . . . . . Robots Corrupted . | . . . . . . Combat Hostiles . | . . . . . . Parts Fried 4 | . 1 3 . . . Impact Corruptions . | . . . . . . Robots Melted . | . . . . . . Combat Hostiles . | . . . . . . Parts Melted 1 | . 1 . . . . Heat Transferred 1153 | . 285 868 . . . Parts Sabotaged . | . . . . . . Parts Stolen . | . . . . . . Parts Stripped . | . . . . . . Power Chain Reactions 1 | . 1 . . . . Missiles Intercepted . | . . . . . . Alert | -11 -10 -9 -9 -7 -6 ------- Run | Scr Mat Mat Min Zio Pro Peak Influence 214 | . 147 214 69 . . Average Influence 68 | . 40 98 69 . . Maximum Alert Level 1 | . . 1 . . . Low Security (%) 99 | 100 100 98 100 . . Level 1 . | . . 1 . . . Level 2 . | . . . . . . Level 3 . | . . . . . . Level 4 . | . . . . . . Level 5 . | . . . . . . High Security . | . . . . . . Max Security . | . . . . . . Squads Dispatched 3 | . 1 1 . . 1 Investigation . | . . . . . . Extermination . | . . . . . . Reinforcement 2 | . 1 1 . . . Assault 1 | . . . . . 1 Garrison . | . . . . . . Intercept . | . . . . . . Construction Impeded . | . . . . . . Haulers Reinforced . | . . . . . . Stealth | -11 -10 -9 -9 -7 -6 --------- Run | Scr Mat Mat Min Zio Pro Distress Signals 4 | . 1 3 . . . Communications Jammed . | . . . . . . Distress Signals . | . . . . . . Times Spotted 44 | . 11 26 . . 7 Peak Tracking Total 12 | . 4 7 . . 12 Tactical Retreats 6 | . 2 3 . . 1 Traps | -11 -10 -9 -9 -7 -6 ------- Run | Scr Mat Mat Min Zio Pro Traps Triggered . | . . . . . . Indirectly . | . . . . . . Trap Hack Attempts . | . . . . . . Triggered . | . . . . . . Disarmed . | . . . . . . Reprogrammed . | . . . . . . Reused . | . . . . . . Traps Extracted . | . . . . . . Installed . | . . . . . . Triggered . | . . . . . . Machines | -11 -10 -9 -9 -7 -6 ---------- Run | Scr Mat Mat Min Zio Pro Machines Disabled . | . . . . . . Max in Single Turn . | . . . . . . Machines Sabotaged . | . . . . . . Garrisons Compromised . | . . . . . . Overloaded Fab Kills . | . . . . . . Fab Network Shutdowns . | . . . . . . Hacking | -11 -10 -9 -9 -7 -6 --------- Run | Scr Mat Mat Min Zio Pro Machines Accessed 2 | . . 1 . 1 . Terminals 1 | . . 1 . . . Fabricators . | . . . . . . Repair Stations . | . . . . . . Recycling Units . | . . . . . . Scanalyzers . | . . . . . . Garrison Access . | . . . . . . Total Hacks 7 | . . 2 . 5 . Successful 7 | . . 2 . 5 . Failed . | . . . . . . Catastrophic . | . . . . . . Database Lockouts . | . . . . . . Manual 7 | . . . . 7 . Terminals 2 | . . 2 . . . Fabricators . | . . . . . . Repair Stations . | . . . . . . Recycling Units . | . . . . . . Scanalyzers . | . . . . . . Garrison Access . | . . . . . . Terminal Hacks 7 | . . 2 . 5 . Record 2 | . . 2 . . . Part Schematic 5 | . . . . 5 . Fabricator Hacks . | . . . . . . Repair Station Hacks . | . . . . . . Recycling Unit Hacks . | . . . . . . Scanalyzer . | . . . . . . Garrison Access Hacks . | . . . . . . Unauthorized Hacks . | . . . . . . Terminals . | . . . . . . Fabricators . | . . . . . . Repair Stations . | . . . . . . Recycling Units . | . . . . . . Scanalyzers . | . . . . . . Garrison Access . | . . . . . . Data Cores Recovered . | . . . . . . Used . | . . . . . . Hacking Detections 1 | . . 1 . . . Full Trace Events . | . . . . . . Feedback Events . | . . . . . . Feedback Blocked . | . . . . . . Robot Schematics Acquired . | . . . . . . Robots Built . | . . . . . . Matter . | . . . . . . Time . | . . . . . . Total Robot Build Rating . | . . . . . . Part Schematics Acquired 5 | . . . . 5 . Parts Built . | . . . . . . Matter . | . . . . . . Time . | . . . . . . Total Part Build Rating . | . . . . . . Parts Repaired . | . . . . . . Time . | . . . . . . Parts Recycled . | . . . . . . Recycled Matter . | . . . . . . Retrieved Matter . | . . . . . . Retrieved Components . | . . . . . . Parts Scanalyzed . | . . . . . . Part Schematics Acquired . | . . . . . . Parts Damaged . | . . . . . . Bothacking | -11 -10 -9 -9 -7 -6 ------------ Run | Scr Mat Mat Min Zio Pro Used RIF Installer . | . . . . . . Robots Hacked . | . . . . . . Non-combat . | . . . . . . Combat . | . . . . . . Robot Hacks Applied . | . . . . . . Relay Couplers Released . | . . . . . . Robots Rewired . | . . . . . . Allies Hacked . | . . . . . . Hacks Repelled . | . . . . . . Allies | -11 -10 -9 -9 -7 -6 -------- Run | Scr Mat Mat Min Zio Pro Total Allies 4 | . . . . 4 . Largest Group 4 | . . . . 4 . Highest-Rated Group 151 | . . . . 151 . Highest-Rated Ally 39 | . . . . 39 . Total Orders . | . . . . . . Ally Attacks . | . . . . . . Total Damage . | . . . . . . Kills . | . . . . . . Allies Corrupted . | . . . . . . Allies Melted . | . . . . . . Intel | -11 -10 -9 -9 -7 -6 ------- Run | Scr Mat Mat Min Zio Pro Robot Analysis Total . | . . . . . . Derelict Logs Recovered 3 | . . . . 1 2 Drone Launches . | . . . . . . Drone Recoveries . | . . . . . . Exploration | -11 -10 -9 -9 -7 -6 ------------- Run | Scr Mat Mat Min Zio Pro Turns Passed 1997 | 58 489 570 5 808 67 Spaces Moved 1789 | 42 293 333 10 1055 56 Core 11 | 7 . . . . 4 Treads . | . . . . . . Legs 557 | 35 293 229 . . . Wheels . | . . . . . . Hover 1221 | . . 104 10 1055 52 Flight . | . . . . . . Fastest Speed 48 | 50 120 48 48 48 48 Average Speed 76 | 108 143 105 48 48 69 Slowest Speed 350 | 120 150 150 48 48 350 Overloaded Moves . | . . . . . . Propulsion Burnouts . | . . . . . . Robots Hopped . | . . . . . . Cave-ins Triggered . | . . . . . . Exploration Rate (%) 27 | 4 41 26 4 83 8 Regions Visited 5 Branch Regions 3 Pre-discovered Areas 4 | . . . . 4 . Known Exits Taken 3 | . . 1 1 1 . Unknown Exits Taken 2 | 1 1 . . . . Scrap Searched 2 | . . . . 1 1 Spaces Dug . | . . . . . . Terrain Destroyed 4 | . 4 . . . . Melee . | . . . . . . Projectile . | . . . . . . AOE 4 | . 4 . . . . Actions | -11 -10 -9 -9 -7 -6 --------- Run | Scr Mat Mat Min Zio Pro Total 2261 | 54 329 445 9 1357 67 Wait 297 | . . . . 297 . Move 1784 | 41 292 332 9 1054 56 Hop . | . . . . . . Pick Up 42 | 7 10 24 . 1 . Fast Attach . | . . . . . . Attach 23 | 6 3 14 . . . Detach . | . . . . . . Swap 8 | . 4 3 . 1 . Drop 19 | . 4 11 . 4 . Fire 88 | . 16 61 . . 11 Melee . | . . . . . . Ram . | . . . . . . Kick . | . . . . . . Crush . | . . . . . . Escape Stasis . | . . . . . . Rewire . | . . . . . . Trap . | . . . . . . Miscellaneous . | . . . . . . Route ------- -11/Scrapyard -10/Materials -9/Materials -9/Mines -7/Zion -6/Proximity Caves History --------- Turn | Location | Event 5 | -11/Scrapyard | Discovered new exit (range 15) 59 | -11/Scrapyard | Entered Materials 318 | -10/Materials | Build established: Mutant 478 | -10/Materials | Discovered new exit (range 16) 548 | -10/Materials | Entered another Materials area 548 | -9/Materials | Evolved 2 slots: Propulsion x2 863 | -9/Materials | Lost 6 parts (1p2n1u2w) 1101 | -9/Materials | Discovered new exit (range 9) 1117 | -9/Materials | Identified exit to Mines 1118 | -9/Materials | Entered Mines 1119 | -9/Mines | A Derelict revealed a hidden shortcut to a safe place 1122 | -9/Mines | Identified exit to Zion 1123 | -9/Mines | Entered Zion 1185 | -7/Zion | Learned location of Data Miner (-6) 1319 | -7/Zion | Imprinted 1321 | -7/Zion | Declared Zion's savior 1512 | -7/Zion | Learned location of Quarantine (-2) 1518 | -7/Zion | Received a visual enhancement algorithm 1557 | -7/Zion | Learned location of 1 exit from Factory 1610 | -7/Zion | Build established: Messiah-Mutant 1623 | -7/Zion | Found Prototype Energy Gun 1811 | -7/Zion | Acquired unknown access codes intercepted by a Zionite 1888 | -7/Zion | Given A8's code to call for help 1924 | -7/Zion | Discovered new exit (range 10) 1930 | -7/Zion | Identified exit to Proximity Caves 1931 | -7/Zion | Entered Proximity Caves 1932 | -6/Proximity Caves | Learned 8 Factory zone layouts 1944 | -6/Proximity Caves | Learned Factory garrison access intel 1950 | -6/Proximity Caves | Attracted the attention of an 0b10 outpost 1990 | -6/Proximity Caves | Core integrity fell below 50% 1998 | -6/Proximity Caves | Destroyed by S-27 Virus with Autogun Last Messages --------------- GOAL=ESCAPE 01932_ Acquired derelict log, extracted data. Data stored: Factory zone layouts (x8). 01938_ Searching scrap... 01938_ Found 40 Matter. 01938_ Found Med. Treads. 01938_ Found System Guard. 01938_ Found Ripper. 01938_ Found Imp. Field Recycling Unit. 01944_ Acquired derelict log, extracted data. Data stored: Factory garrison access intel. 01949_ Penetrated by Slug. 01950_ Y-64 Sentinel: "DETECTED UNIDENTIFIED DERELICT." 01954_ Y-64 Sentinel: "REQUESTING BACKUP." 01977_ Lgt. Assault Rifle destroyed. 01980_ Imp. Hover Unit destroyed. 01981_ Ion Engine destroyed. 01984_ Imp. Hover Unit destroyed. 01986_ Hvy. Assault Rifle destroyed. 01995_ Penetrated by Slug. Map ----- +----------------------------------------------------+ | ?????????????????????????????????????????????????? | | ?????????????????????????????????????????????????? | | ?????????????????????????????????????????????????? | | ?????????????????????????????????????????????????? | | ?????????????????????????????????????????????????? | | ?????????????????????????????????????????????????? | | ???????????????????????????????????????# ??????? | | ??????????????????????????????????????? ##????? | | ?????????????????????????????????????? # #??? | | ??????????????????????? ?????????????? #??? | | ??????????????????????? ##???????????? /??? | | ??????????????????????? ###????????? ???? | | ??????????????????????? ##???????? ????? | | ??????????????????????? #???????? #?????? | | ??????????????????????? ????????# ####+#? | | ??????##??????????????# ????????? ??? | | ?????## ???????????## ?????????? #????? | | ????## ?????????## ?????????## ###??? | | ????# #????????# #??????#### #??? | | ?????? #???????# #??##### #???? | | ????????# ###????# #??# #???? | | ??????????# ##??# #???# ### | | ???????????# =%#### ##### ### ##????? | | ???????????## !!/ ### ##?????????? | | ??????????### g Y ######????????????? | | ??????????# ##@ sb #?????????????????? | | ??????????# ### lb #?????????????????? | | ??????????# ###?# l ##?????????????????? | | ??????????# #???## ##??????????????????? | | ??????????## $##???#;###???????????????????? | | ???????????## #???###?????????????????????? | | ????????????##### ##???????????????????????????? | | ????????????????#####????????????????????????????? | | ?????????????????????????????????????????????????? | | ?????????????????????????????????????????????????? | | ?????????????????????????????????????????????????? | | ?????????????????????????????????????????????????? | | ?????????????????????????????????????????????????? | | ?????????????????????????????????????????????????? | | ?????????????????????????????????????????????????? | | ?????????????????????????????????????????????????? | | ?????????????????????????????????????????????????? | | ?????????????????????????????????????????????????? | | ?????????????????????????????????????????????????? | | ?????????????????????????????????????????????????? | | ?????????????????????????????????????????????????? | | ?????????????????????????????????????????????????? | | ?????????????????????????????????????????????????? | | | | | +----------------------------------------------------+ Best States ------------- Heat Dissipation 28 Energy Generation 10 Energy Capacity 250 Matter Stores 300 Matter Capacity 300 Sight Range 16 Terrain Scan Range 14 Terrain Scan Density 10 Evasion (%) 55 Item Schematics ----------------- Beamcaster | -7/Zion | Free Hvy. Riot Gun | -7/Zion | Free Battle Rifle | -7/Zion | Free Barrage Gun | -7/Zion | Free Enh. Flamer | -7/Zion | Free Robot Schematics ------------------ None Fabricated ------------ Nothing Alien Tech Used ----------------- None Achievements -------------- Robot Respite The One Challenges ------------ None Game ------ Seed ImpulseRestorationThrusters Manual? 0 Play Time 00:36:14 Cumulative 4.2 hours Start 2020.08.22 @ 09:16:53 End 2020.08.22 @ 19:36:50 Sessions 5 Manual Loads 0 Difficulty Rogue Special Mode None Game No. 6 Rogue 6 Adventurer 0 Explorer 0 Win Type - Total 0 Types 0/0/0/0/0/0/0 Lore% 10 Gallery% 10 Achievement% 8 Wizard Run 0 Options --------- ASCII 0 Keyboard 0 Movement Numpad Keybinds 0 Fullscreen 1 Font 16/Terminus Map View 76x50 Tactical HUD 1 Map Filters NONE Filters NONE Steam 1 RUN: 494175c0-2591-4e7e-bfe1-a4dd741b0e8d